fUSD/lending_fUSD_20251110
["ID","MTS","AMOUNT","RATE_DAILY","PERIOD"]
[393523986,1762762233031,-502.08330674,0.00034581,30]
[393523987,1762762233040,-515.69178766,0.00034581,120]
[393523988,1762762233051,-570.32987996,0.00034581,120]
[393523989,1762762233061,-3948.8675366,0.00034582,3]
[393523990,1762762233073,-14240.0449117,0.00034582,3]
[393523991,1762762233083,-19248.5505715,0.00034582,3]
[393523992,1762762233094,-91265.34262928,0.00034582,2]
[393523993,1762762233106,-69998.60446566,0.00034582,2]
[393523996,1762762237996,-216.84869253,0.00032637,2]
[393523997,1762762238006,-500.0,0.00032637,2]
[393523998,1762762238016,-500.0,0.00032637,2]
[393523999,1762762238026,-500.0,0.00032637,2]
[393524000,1762762238035,-217.79505623,0.00032637,2]
[393524001,1762762238045,-215.24025124,0.00032637,2]
[393524002,1762762238056,-284.75974876,0.00032637,2]
[393524003,1762762238066,-500.0,0.00032637,2]
[393524004,1762762238075,-500.0,0.00032637,2]
[393524005,1762762238085,-453.92430772,0.00032637,2]
[393524006,1762762238096,-46.07569228,0.00032637,2]
[393524007,1762762238106,-500.0,0.00032637,2]
[393524008,1762762238117,-500.0,0.00032637,2]
[393524009,1762762238126,-500.0,0.00032637,2]
[393524010,1762762238136,-651.03747544,0.00034582,2]
[393524011,1762762238198,-1528.89276285,0.00034582,2]
[393524018,1762762239705,-1211.9913201,0.00034582,2]
[393524019,1762762239731,-3072.5989758,0.00034582,2]
[393524020,1762762240006,-372.24,0.00034582,2]
[393524055,1762762243013,-500.0,0.00034582,2]
[393524056,1762762243024,-4024.8295,0.00034582,2]
[393524058,1762762243231,-151.0,0.00025752,2]
[393524059,1762762243241,-56655.13686705,0.00034582,2]
[393524096,1762762246052,-13308.58913512,0.00034582,2]
[393525487,1762762735358,-237.44913697,0.00032093,2]
[393525534,1762762750866,-184.53831417,0.00032093,2]
[393525535,1762762750888,-47.29846464,0.00032172,120]
[393525613,1762762780429,-147.70153536,0.00032172,120]
[393525614,1762762780452,-164.46490794,0.00032193,2]
[393525615,1762762780474,-11.38128939,0.0003225,120]
[393525616,1762762782214,-219.90553776,0.0003225,120]
[393525617,1762762784011,-268.71317285,0.0003225,120]
[393525618,1762762784033,-47.72970463,0.0003225,120]
[393525623,1762762790757,-172.37,0.0003225,120]
[393525916,1762763095605,1688.37181959,0.00015,2]
[393526088,1762763204318,175.46,0.00017018,2]
[393526091,1762763212128,-175.46,0.00025193,2]
[393526092,1762763212149,-264.47513237,0.0003,6]
[393526093,1762763213015,10000.01,0.000162,5]
[393526094,1762763213040,10000.01,0.000162,5]
[393526095,1762763213064,10000.01,0.000162,5]
[393526096,1762763213088,10000.01,0.000162,5]
[393526097,1762763213112,50000.0,0.000162,5]
[393526098,1762763213141,10486.81778133,0.000162,5]
[393526100,1762763270331,10000.01,0.00015,2]
[393526101,1762763270356,10000.01,0.00015,2]
[393526102,1762763270379,10000.01,0.00015,2]
[393526103,1762763270403,9513.18221867,0.00015,2]
[393526104,1762763270430,341032.80917704,0.00015,2]
[393526111,1762763312137,373.49613105,0.00015807,2]
[393526112,1762763314855,6265.82916462,0.00015,3]
[393526113,1762763315570,-154.29355216,0.000205,2]
[393526115,1762763345081,-415.52486763,0.0003,6]
[393526116,1762763345103,-627.96,0.000308,6]
[393526136,1762763431795,-279.90029537,0.0003225,120]
[393526137,1762763431804,-500.0,0.0003225,120]
[393526138,1762763431814,-999.0,0.00032641,3]
[393526139,1762763431827,-500.0,0.00032641,2]
[393526140,1762763431837,-563.26,0.00032641,2]
[393526141,1762763431847,-1000.0,0.00033234,2]
[393526142,1762763431856,-185.97,0.0003326,2]
[393526143,1762763431866,-175.46,0.00033368,2]
[393526144,1762763431875,-754.92,0.00033424,120]
[393526145,1762763431884,-159.11,0.00033441,2]
[393526146,1762763431893,-1600.0,0.00033448,3]
[393526147,1762763431902,-1200.0,0.00033449,3]
[393526148,1762763431911,-400.0,0.0003345,3]
[393526149,1762763431920,-300.0,0.0003345,3]
[393526150,1762763431929,-5000.0,0.00033451,2]
[393526151,1762763431938,-242.0,0.00033637,2]
[393526152,1762763431948,-242.0,0.000339,2]
[393526153,1762763431957,-242.0,0.00034159,2]
[393526154,1762763431966,-580.75,0.00034159,10]
[393526155,1762763431975,-832.26994,0.0003424,2]
[393526156,1762763431984,-240.95458696,0.00034365,2]
[393526157,1762763431993,-208.41309477,0.00034372,15]
[393526158,1762763432004,-500.0,0.00034373,5]
[393526159,1762763432013,-164.61097417,0.00034373,5]
[393526160,1762763432022,-500.0,0.00034373,5]
[393526161,1762763432032,-500.0,0.00034373,5]
[393526162,1762763432041,-500.0,0.00034373,5]
[393526163,1762763432051,-500.7971487,0.00034373,5]
[393526164,1762763432062,-2500.0,0.00034375,2]
[393526165,1762763432071,-300.0,0.00034376,2]
[393526166,1762763432080,-414.21491017,0.00034377,2]
[393526167,1762763432089,-612.84786107,0.00034377,7]
[393526168,1762763432099,-500.0,0.00034377,7]
[393526169,1762763432109,-500.0,0.00034377,7]
[393526170,1762763432120,-500.0,0.00034377,7]
[393526171,1762763432129,-500.0,0.00034377,7]
[393526172,1762763432138,-500.0,0.00034377,7]
[393526174,1762763432147,-500.0,0.00034377,7]
[393526176,1762763432157,-500.0,0.00034377,7]
[393526178,1762763432165,-500.0,0.00034377,7]
[393526180,1762763432174,-500.0,0.00034377,7]
[393526182,1762763432183,-500.0,0.00034377,7]
[393526184,1762763432192,-500.0,0.00034377,7]
[393526186,1762763432202,-500.0,0.00034377,7]
[393526188,1762763432212,-500.0,0.00034377,7]
[393526190,1762763432221,-500.0,0.00034377,7]
[393526192,1762763432230,-500.0,0.00034377,7]
[393526194,1762763432239,-500.0,0.00034377,7]
[393526196,1762763432248,-500.0,0.00034377,7]
[393526198,1762763432259,-500.0,0.00034377,7]
[393526200,1762763432269,-500.0,0.00034377,7]
[393526202,1762763432279,-434.74086778,0.00034377,7]
[393526204,1762763432289,-500.0,0.00034377,7]
[393526207,1762763432298,-500.0,0.00034377,7]
[393526209,1762763432308,-8385.48984206,0.00034379,2]
[393526211,1762763432317,-9124.18382732,0.00034379,2]
[393526213,1762763432326,-24869.7653,0.00034382,2]
[393526215,1762763432337,-288.0,0.00034383,2]
[393526217,1762763432347,-242.0,0.00034385,7]
[393526219,1762763432357,-163.76,0.00034403,2]
[393526221,1762763432366,-894.01797964,0.00034408,2]
[393526223,1762763432376,-1680.55959711,0.00034411,2]
[393526226,1762763432385,-242.0,0.00034431,2]
[393526229,1762763432395,-221.8861932,0.00034437,2]
[393526231,1762763432406,-242.0,0.00034437,7]
[393526233,1762763432417,-153.0,0.00034447,2]
[393526235,1762763432426,-153.0,0.00034447,2]
[393526237,1762763432434,-153.0,0.00034447,2]
[393526239,1762763432443,-153.0,0.00034447,2]
[393526241,1762763432452,-153.0,0.00034447,2]
[393526243,1762763432463,-153.0,0.00034449,2]
[393526245,1762763432472,-153.0,0.00034449,2]
[393526247,1762763432481,-153.0,0.00034449,2]
[393526249,1762763432490,-153.0,0.00034449,2]
[393526251,1762763432499,-1115.8,0.00034455,2]
[393526253,1762763432508,-1115.8,0.00034455,2]
[393526255,1762763432516,-1115.8,0.00034455,2]
[393526257,1762763432525,-1115.8,0.00034455,2]
[393526259,1762763432534,-1115.8,0.00034455,2]
[393526261,1762763432543,-153.0,0.0003446,2]
[393526263,1762763432551,-153.0,0.0003446,2]
[393526265,1762763432561,-153.0,0.0003446,2]
[393526267,1762763432570,-153.0,0.0003446,2]
[393526269,1762763432578,-153.0,0.0003446,2]
[393526271,1762763432587,-153.0,0.00034461,2]
[393526273,1762763432596,-153.0,0.00034461,2]
[393526275,1762763432605,-153.0,0.00034461,2]
[393526277,1762763432615,-153.0,0.00034461,2]
[393526279,1762763432624,-151.0,0.00034462,14]
[393526281,1762763432633,-309.50119164,0.00034464,7]
[393526283,1762763432643,-395.65758545,0.00034464,7]
[393526285,1762763432652,-500.0,0.00034464,7]
[393526287,1762763432662,-500.0,0.00034464,7]
[393526289,1762763432671,-454.63526622,0.00034464,7]
[393526291,1762763432680,-152569.99757404,0.00034465,3]
[393526293,1762763432692,-8940.50768576,0.00034465,3]
[393526294,1762763432703,-38496.86774553,0.00034465,3]
[393526295,1762763432716,-67927.35151847,0.00034465,3]
[393526296,1762763432727,-950.06454241,0.00034465,3]
[393526297,1762763432738,-1027.56547607,0.00034465,3]
[393526497,1762763437820,-17694.548173,0.00034465,3]
[393526505,1762763440092,-0.05460755,0.00034465,3]
[393526506,1762763440105,-1021.894823,0.00034465,3]
[393526507,1762763440117,-11321.0,0.00034465,3]
[393526508,1762763440152,-320.3,0.00033556,2]
[393526509,1762763440162,-38221.7746804,0.00034465,3]
[393526515,1762763443032,-888.74620443,0.00034465,3]
[393526516,1762763443046,-799.71728765,0.00034465,3]
[393526517,1762763443057,-5000.00292773,0.00034465,3]
[393526518,1762763443123,-922.4466655,0.00034465,3]
[393526522,1762763446051,-979.66721052,0.00034465,3]
[393526523,1762763446062,-1261.7999,0.00034465,3]
[393526526,1762763620350,-1000.0,0.00025,2]
[393526528,1762763833065,1461.98,0.00025,120]
[393526532,1762763965815,157.37,0.00013699,2]
[393526534,1762763985179,-157.37,0.00020548,2]
[393526535,1762764190341,-157.37,0.00027397,2]
[393526536,1762764190363,-44.0220951,0.00027771,2]
[393526537,1762764192489,-171.76167588,0.00027771,2]
[393526538,1762764194782,-34.21622902,0.00027771,2]
[393526539,1762764194805,-195.0,0.00028144,120]
[393526540,1762764194827,-140.06116375,0.00028723,2]
[393526542,1762764204099,-44.75684017,0.00028723,2]
[393526543,1762764204126,-159.25,0.00028891,30]
[393526544,1762764204150,-115.51690994,0.00029491,120]
[393526545,1762764213492,1061.0,0.000284,5]
[393526547,1762764546126,-859.92176438,0.00029692,2]
[393526548,1762764629693,-151.0,0.00028868,2]
[393526553,1762764631972,-1013.27646122,0.00029692,2]
[393526554,1762764631983,-981.40148245,0.00029692,2]
[393526555,1762764631995,-1164.6702764,0.00029692,2]
[393526556,1762764632028,-391.23086674,0.00029692,2]
[393526557,1762764632039,-902.65587421,0.00029692,2]
[393526558,1762764632051,-72.78877517,0.00029692,2]
[393526559,1762764632060,-217.96,0.00029791,2]
[393526560,1762764632069,-810.00550733,0.00029949,2]
[393526561,1762764632084,-389.99449267,0.00029949,2]
[393526562,1762764632094,-500.0,0.0002995,5]
[393526563,1762764632103,-1600.0,0.00030135,2]
[393526564,1762764632113,-500.0,0.00030498,5]
[393526565,1762764632123,-166.66,0.00031278,30]
[393526566,1762764632136,-703.0,0.00031622,7]
[393526567,1762764632145,-400.0,0.00031955,2]
[393526568,1762764632155,-400.0,0.00031955,3]
[393526569,1762764632165,-703.0,0.00031956,2]
[393526570,1762764632175,-166.66,0.00032101,30]
[393526571,1762764632185,-548.0,0.00032128,7]
[393526572,1762764632195,-505.0,0.00032219,2]
[393526573,1762764632204,-800.0,0.0003228,3]
[393526574,1762764632215,-500.0,0.0003243,5]
[393526575,1762764632225,-183.19,0.00032461,120]
[393526576,1762764632235,-3004.11133893,0.00032477,2]
[393526577,1762764632244,-1000.0,0.00032547,2]
[393526578,1762764632254,-2240.0,0.00032612,3]
[393526579,1762764632264,-353.25578801,0.00032645,2]
[393526580,1762764632274,-171.88220966,0.00032645,2]
[393526581,1762764632283,-155.56479245,0.00032645,2]
[393526582,1762764632292,-500.0,0.00032645,2]
[393526583,1762764632302,-500.0,0.00032645,2]
[393526584,1762764632311,-500.0,0.00032645,2]
[393526585,1762764632320,-500.0,0.00032645,2]
[393526586,1762764632330,-500.0,0.00032645,2]
[393526587,1762764632339,-500.0,0.00032645,2]
[393526589,1762764632348,-500.0,0.00032645,2]
[393526590,1762764632358,-500.0,0.00032645,2]
[393526592,1762764632368,-493.6368789,0.00032645,2]
[393526593,1762764632378,-500.0,0.00032645,2]
[393526594,1762764632387,-500.0,0.00032645,2]
[393526595,1762764632397,-500.0,0.00032645,2]
[393526597,1762764632406,-500.0,0.00032645,2]
[393526599,1762764632415,-450.0,0.00032646,2]
[393526601,1762764632425,-548.0,0.00032648,2]
[393526602,1762764632434,-250.0,0.00032661,2]
[393526603,1762764632444,-1385.58667729,0.00032661,120]
[393526604,1762764632453,-195.0,0.00032661,120]
[393526605,1762764632463,-501.0775918,0.00032667,5]
[393526606,1762764632472,-500.0,0.00032667,5]
[393526607,1762764632481,-500.0,0.00032667,5]
[393526608,1762764632491,-1008.9,0.00032765,2]
[393526609,1762764632500,-166.66,0.00032924,30]
[393526610,1762764632510,-168.0,0.00032998,2]
[393526611,1762764632519,-168.0,0.00033015,2]
[393526612,1762764632529,-200.0,0.00033151,2]
[393526613,1762764632539,-4545.38793977,0.00033292,2]
[393526614,1762764632549,-200.0,0.00033399,2]
[393526615,1762764632558,-312.88422205,0.00033556,2]
[393526616,1762764632568,-151.0,0.00033556,2]
[393526617,1762764632577,-620.994,0.00033601,36]
[393526618,1762764632587,-347.0,0.00033601,2]
[393526619,1762764632598,-166.66,0.00033747,30]
[393526620,1762764632607,-151.0,0.00033791,2]
[393526621,1762764632617,-151.0,0.00033791,2]
[393526622,1762764632627,-151.0,0.00033791,2]
[393526623,1762764632636,-151.0,0.00033791,2]
[393526624,1762764632645,-151.0,0.00033791,2]
[393526625,1762764632655,-151.0,0.00033791,2]
[393526626,1762764632664,-151.0,0.00033791,2]
[393526627,1762764632674,-151.0,0.00033791,2]
[393526628,1762764632683,-151.0,0.00033791,2]
[393526629,1762764632692,-151.0,0.00033791,2]
[393526630,1762764632702,-151.0,0.00033791,2]
[393526631,1762764632711,-151.0,0.00033791,2]
[393526632,1762764632720,-151.0,0.00033791,2]
[393526633,1762764632730,-273.56585454,0.00033791,2]
[393526634,1762764632740,-150.0,0.00033808,7]
[393526635,1762764632749,-150.0,0.00033808,7]
[393526636,1762764632758,-150.0,0.00033808,2]
[393526637,1762764632768,-150.0,0.00033808,7]
[393526638,1762764632777,-150.0,0.00033808,7]
[393526639,1762764632786,-150.0,0.00033808,7]
[393526640,1762764632795,-150.0,0.00033811,2]
[393526641,1762764632805,-150.0,0.00033811,2]
[393526642,1762764632814,-150.0,0.00033811,7]
[393526643,1762764632824,-150.0,0.00033811,7]
[393526644,1762764632833,-150.0,0.00033811,7]
[393526645,1762764632842,-150.0,0.00033811,7]
[393526646,1762764632852,-150.0,0.00033811,7]
[393526647,1762764632861,-150.0,0.00033811,7]
[393526648,1762764632871,-150.0,0.00033811,7]
[393526649,1762764632880,-153.02553641,0.00033811,7]
[393526650,1762764632889,-150.0,0.00033811,7]
[393526651,1762764632899,-151.42017453,0.00033811,7]
[393526652,1762764632908,-150.0,0.00033811,7]
[393526653,1762764632917,-16347.32908033,0.00033812,2]
[393526654,1762764632927,-221.8861932,0.00033825,2]
[393526655,1762764632936,-1331.71428217,0.0003383,2]
[393526656,1762764632945,-347.0,0.00033885,7]
[393526657,1762764632955,-349.0,0.00033915,2]
[393526658,1762764632965,-150.0,0.00033945,7]
[393526659,1762764632975,-150.0,0.00033945,2]
[393526660,1762764632985,-150.0,0.00033945,7]
[393526661,1762764632994,-150.0,0.00033945,7]
[393526662,1762764633004,-150.0,0.00033948,2]
[393526663,1762764633014,-150.0,0.00033948,7]
[393526664,1762764633024,-150.0,0.00033948,7]
[393526665,1762764633034,-150.0,0.00033948,7]
[393526666,1762764633044,-195.72412489,0.00033948,7]
[393526667,1762764633054,-153.0,0.00034081,2]
[393526668,1762764633063,-153.0,0.00034081,2]
[393526669,1762764633073,-153.0,0.00034081,2]
[393526670,1762764633083,-173.19,0.00034082,7]
[393526671,1762764633092,-200.0,0.00034082,2]
[393526672,1762764633102,-200.0,0.00034082,7]
[393526673,1762764633111,-150.0,0.00034082,7]
[393526674,1762764633122,-153.0,0.00034082,2]
[393526675,1762764633134,-153.0,0.00034082,2]
[393526676,1762764633144,-200.0,0.00034085,2]
[393526677,1762764633154,-200.0,0.00034085,7]
[393526678,1762764633164,-200.0,0.00034085,7]
[393526679,1762764633174,-200.0,0.00034085,7]
[393526680,1762764633185,-153.0,0.00034094,2]
[393526681,1762764633195,-153.0,0.00034094,2]
[393526682,1762764633204,-153.0,0.00034094,2]
[393526683,1762764633215,-153.0,0.00034094,2]
[393526684,1762764633225,-153.0,0.00034094,2]
[393526685,1762764633234,-153.0,0.00034096,2]
[393526686,1762764633244,-153.0,0.00034096,2]
[393526687,1762764633253,-3250.9021,0.00034096,2]
[393526688,1762764633262,-234.4756,0.00034096,2]
[393526689,1762764633272,-279.9279,0.00034096,2]
[393526690,1762764633281,-1009.0,0.000341,7]
[393526691,1762764633290,-1331.71428217,0.00034106,2]
[393526692,1762764633299,-153.0,0.00034107,2]
[393526693,1762764633309,-153.0,0.00034109,2]
[393526694,1762764633318,-153.0,0.00034109,2]
[393526695,1762764633327,-153.0,0.00034109,2]
[393526696,1762764633337,-153.0,0.00034109,2]
[393526697,1762764633347,-1110.9098,0.0003413,2]
[393526698,1762764633356,-151.0,0.00034159,14]
[393526699,1762764633366,-210.83526359,0.00034162,2]
[393526700,1762764633376,-2500.0,0.00034172,2]
[393526701,1762764633385,-160.58726341,0.00034173,5]
[393526702,1762764633394,-500.0,0.00034173,5]
[393526703,1762764633403,-500.0,0.00034173,5]
[393526704,1762764633412,-501.12226289,0.00034173,5]
[393526705,1762764633421,-171.63174595,0.00034173,5]
[393526706,1762764633431,-500.0,0.00034173,5]
[393526707,1762764633440,-500.0,0.00034173,5]
[393526708,1762764633450,-500.0,0.00034173,5]
[393526709,1762764633459,-500.0,0.00034173,5]
[393526710,1762764633468,-160.92807844,0.00034173,5]
[393526711,1762764633478,-501.61257175,0.00034173,5]
[393526712,1762764633487,-500.0,0.00034173,2]
[393526713,1762764633496,-178.14294969,0.00034173,5]
[393526714,1762764633505,-500.0,0.00034173,5]
[393526715,1762764633514,-500.60167379,0.00034173,5]
[393526716,1762764633523,-503.07424639,0.00034173,5]
[393526717,1762764633532,-313.4747397,0.00034173,5]
[393526718,1762764633542,-503.00814931,0.00034173,5]
[393526719,1762764633551,-236.94168091,0.00034173,15]
[393526720,1762764633560,-151.0,0.00034193,14]
[393526721,1762764633569,-216.65083415,0.00034195,7]
[393526722,1762764633579,-276.96030982,0.00034195,7]
[393526723,1762764633588,-500.0,0.00034195,7]
[393526724,1762764633599,-518.24468636,0.00034195,7]
[393526725,1762764633608,-99567.05800575,0.00034196,2]
[393526726,1762764633618,-221.8861932,0.00034207,2]
[393526727,1762764633627,-790.0,0.00034214,2]
[393526728,1762764633636,-150.0,0.00034219,7]
[393526729,1762764633646,-150.0,0.0003423,2]
[393526730,1762764633655,-157.37,0.00034247,2]
[393526731,1762764633664,-290.36,0.00034252,2]
[393526732,1762764633674,-290.36,0.00034252,2]
[393526733,1762764633683,-151.0,0.00034259,14]
[393526734,1762764633693,-151.0,0.00034259,14]
[393526735,1762764633702,-151.0,0.00034262,31]
[393526736,1762764633711,-151.0,0.00034262,31]
[393526737,1762764633720,-165.023897,0.00034262,30]
[393526738,1762764633729,-151.0,0.00034262,31]
[393526739,1762764633739,-165.023897,0.00034262,30]
[393526740,1762764633748,-151.0,0.00034262,31]
[393526741,1762764633757,-165.023897,0.00034262,30]
[393526742,1762764633767,-151.0,0.00034262,31]
[393526743,1762764633776,-165.023897,0.00034262,30]
[393526744,1762764633785,-151.0,0.00034262,31]
[393526745,1762764633795,-501.05,0.00034262,31]
[393526746,1762764633804,-501.05,0.00034262,31]
[393526747,1762764633813,-151.0,0.00034262,30]
[393526748,1762764633822,-501.05,0.00034262,31]
[393526749,1762764633831,-151.0,0.00034262,31]
[393526750,1762764633841,-501.05,0.00034262,31]
[393526751,1762764633850,-166.348452,0.00034262,31]
[393526752,1762764633859,-166.348452,0.00034262,31]
[393526753,1762764633869,-166.348452,0.00034262,31]
[393526754,1762764633878,-166.348452,0.00034262,31]
[393526755,1762764633888,-160.377332,0.00034262,31]
[393526756,1762764633897,-160.377332,0.00034262,31]
[393526757,1762764633906,-160.377332,0.00034262,31]
[393526758,1762764633915,-160.377332,0.00034262,31]
[393526759,1762764633923,-299.595237,0.00034262,31]
[393526760,1762764633932,-151.0,0.00034262,31]
[393526761,1762764633941,-151.0,0.00034262,31]
[393526762,1762764633951,-153.092827,0.00034262,31]
[393526763,1762764633960,-151.0,0.00034262,31]
[393526764,1762764633970,-136721.1135771,0.00034262,3]
[393526765,1762764633984,-38267.4393359,0.00034262,3]
[393526766,1762764633993,-163.56812444,0.00034262,3]
[393526767,1762764634008,-34267.74718826,0.00034262,3]
[393526768,1762764634017,-290.36,0.00034262,2]
[393526769,1762764634027,-290.36,0.00034262,2]
[393526770,1762764634036,-290.36,0.00034262,2]
[393526771,1762764634046,-1000.0,0.00034267,2]
[393526772,1762764634055,-165.023897,0.00034272,30]
[393526773,1762764634065,-151.0,0.00034272,31]
[393526774,1762764634074,-165.023897,0.00034272,30]
[393526775,1762764634084,-151.0,0.00034272,31]
[393526776,1762764634093,-79.11706913,0.00034272,30]
[393526777,1762764634112,-500.0,0.00032645,2]
[393526778,1762764634123,-85.90682787,0.00034272,30]
[393526779,1762764634134,-151.0,0.00034272,31]
[393526780,1762764634145,-165.023897,0.00034272,30]
[393526781,1762764634156,-232.0027978,0.00034272,31]
[393526782,1762764634175,-500.0,0.00032645,2]
[393526783,1762764634187,-269.0472022,0.00034272,31]
[393526784,1762764634199,-501.05,0.00034272,31]
[393526785,1762764634213,-501.05,0.00034272,31]
[393526786,1762764634224,-151.0,0.00034272,31]
[393526787,1762764634236,-501.05,0.00034272,31]
[393526788,1762764634247,-166.348452,0.00034272,31]
[393526789,1762764634259,-166.348452,0.00034272,31]
[393526790,1762764634270,-166.348452,0.00034272,31]
[393526791,1762764634280,-166.348452,0.00034272,31]
[393526792,1762764634291,-160.377332,0.00034272,31]
[393526793,1762764634302,-160.377332,0.00034272,31]
[393526794,1762764634313,-160.377332,0.00034272,31]
[393526795,1762764634324,-160.377332,0.00034272,31]
[393526796,1762764634336,-151.0,0.00034272,31]
[393526797,1762764634347,-151.0,0.00034272,31]
[393526798,1762764634358,-1198.2399618,0.00034272,2]
[393526799,1762764637867,-151.0,0.00028924,2]
[393526800,1762764637877,-500.0,0.00032645,2]
[393526801,1762764637886,-500.0,0.00032645,2]
[393526802,1762764637899,-500.0,0.00032645,2]
[393526803,1762764637909,-500.0,0.00032645,2]
[393526804,1762764637918,-500.0,0.00032645,2]
[393526805,1762764637928,-500.0,0.00032645,2]
[393526806,1762764637937,-500.0,0.00032645,2]
[393526807,1762764637946,-500.0,0.00032645,2]
[393526808,1762764637955,-500.0,0.00032645,2]
[393526809,1762764637964,-500.0,0.00032645,2]
[393526810,1762764637974,-500.0,0.00032645,2]
[393526811,1762764637984,-500.0,0.00032645,2]
[393526812,1762764637994,-500.0,0.00032645,2]
[393526813,1762764638004,-500.0,0.00032645,2]
[393526814,1762764638014,-500.0,0.00032645,2]
[393526815,1762764638023,-500.0,0.00032645,2]
[393526816,1762764638033,-438.36454677,0.00032645,2]
[393526817,1762764638047,-61.63545323,0.00032645,2]
[393526818,1762764638057,-419.02454678,0.00032645,2]
[393526896,1762764639912,-80.97545322,0.00032645,2]
[393526897,1762764640127,-500.0,0.00032645,2]
[393526898,1762764640145,-218.66939544,0.00032645,2]
[393526899,1762764640158,-281.33060456,0.00032645,2]
[393526900,1762764640168,-500.0,0.00032645,2]
[393526901,1762764640179,-500.0,0.00032645,2]
[393526902,1762764640189,-248.52064324,0.00032645,2]
[393526903,1762764640204,-251.47935676,0.00032645,2]
[393526904,1762764640215,-439.5784145,0.00032645,2]
[393526905,1762764640226,-60.4215855,0.00032645,2]
[393526906,1762764640235,-447.5544307,0.00032645,2]
[393526907,1762764640247,-52.4455693,0.00032645,2]
[393526908,1762764640256,-500.0,0.00032645,2]
[393526909,1762764640266,-148.9544307,0.00032645,2]
[393526910,1762764640278,-351.0455693,0.00032645,2]
[393526911,1762764640287,-500.0,0.00032645,2]
[393526912,1762764640296,-500.0,0.00032645,2]
[393526913,1762764640307,-150.0,0.00033808,7]
[393526914,1762764640316,-150.0,0.00033808,7]
[393526915,1762764640326,-150.0,0.00033808,7]
[393526916,1762764640335,-151.0,0.00034262,31]
[393526917,1762764640345,-27.46975741,0.00034272,31]
[393526918,1762764640356,-123.53024259,0.00034272,31]
[393526919,1762764640365,-238.96975741,0.00034272,2]
[393526932,1762764643172,-490.0,0.00034272,2]
[393526933,1762764643225,-6894.67494357,0.00034272,2]
[393526934,1762764643249,-166.04983569,0.00034272,2]
[393526938,1762764646153,-347.11886598,0.00034272,2]
[393526939,1762764646210,-9535.0,0.00034272,2]
[393526940,1762764646263,-1259.99999998,0.00034272,2]
[393526944,1762764660606,-151.0,0.00029313,2]
[393526947,1762764899252,-160.59,0.00029,2]
[393526948,1762764914629,-151.0,0.00029325,2]
[393526949,1762765123521,1790.0,0.00021,2]
[393526950,1762765179837,-178.54,0.00026332,2]
[393526951,1762765397932,-152.0,0.00030521,3]
[393526952,1762765397958,-500.0,0.00030521,2]
[393526953,1762765397979,-478.32096809,0.00030567,2]
[393526954,1762765398000,-1465.43,0.00030639,2]
[393526955,1762765398022,-154.0,0.000326,120]
[393526956,1762765398043,-610.0,0.00032768,2]
[393526957,1762765398064,-999.0,0.0003289,3]
[393526958,1762765398084,-514.34,0.0003289,2]
[393526959,1762765398105,-1224.32,0.00032932,30]
[393526960,1762765398127,-150.0,0.00033127,2]
[393526961,1762765398149,-35.58903191,0.00033215,3]
[393526964,1762765656946,-185.5363,0.00030421,2]
[393526975,1762765832346,-946.61125507,0.00032763,2]
[393526976,1762765832359,-465.9953285,0.00032763,2]